[Event "Late-Titled-Tuesday-Blitz-April-16-2024"]
[Site "Chess.com"]
[Date "2024.04.16"]
[Round "6"]
[White "Vladimir_2020"]
[Black "rdarruda"]
[Result "1-0"]
[WhiteElo "2766"]
[BlackElo "2550"]
[TimeControl "180+1"]
[EndTime "15:03:29 PDT"]
[Termination "Vladimir_2020 won by resignation"]

1. e4 {[%clk 0:03:00.9]} 1... c5 {[%clk 0:02:52.5]} 2. Nf3 {[%clk 0:03:00.8]}
2... Nc6 {[%clk 0:02:51.7]} 3. Bb5 {[%clk 0:02:59.9]} 3... g6 {[%clk 0:02:51.3]}
4. O-O {[%clk 0:02:57.9]} 4... Bg7 {[%clk 0:02:50.7]} 5. Re1 {[%clk 0:02:58.1]}
5... Nf6 {[%clk 0:02:50.6]} 6. c3 {[%clk 0:02:57.8]} 6... O-O {[%clk 0:02:50]}
7. h3 {[%clk 0:02:55.2]} 7... d6 {[%clk 0:02:44.4]} 8. d4 {[%clk 0:02:53]} 8...
cxd4 {[%clk 0:02:43.6]} 9. cxd4 {[%clk 0:02:52.8]} 9... e6 {[%clk 0:02:40.1]}
10. Nc3 {[%clk 0:02:51.8]} 10... a6 {[%clk 0:02:38.5]} 11. Bxc6 {[%clk
0:02:41.5]} 11... bxc6 {[%clk 0:02:39.4]} 12. e5 {[%clk 0:02:41.9]} 12... Nd5
{[%clk 0:02:38.8]} 13. Ne4 {[%clk 0:02:41.2]} 13... dxe5 {[%clk 0:02:36.8]} 14.
dxe5 {[%clk 0:02:41.1]} 14... Qc7 {[%clk 0:02:35.2]} 15. Bg5 {[%clk 0:02:33.7]}
15... h6 {[%clk 0:02:24.4]} 16. Bf6 {[%clk 0:02:33.7]} 16... Bd7 {[%clk
0:02:14]} 17. Qc1 {[%clk 0:02:25.8]} 17... Rab8 {[%clk 0:02:11.3]} 18. b3 {[%clk
0:02:22]} 18... Rb4 {[%clk 0:02:02.1]} 19. Bxg7 {[%clk 0:02:14.6]} 19... Kxg7
{[%clk 0:02:01.3]} 20. Nc5 {[%clk 0:02:14.7]} 20... Bc8 {[%clk 0:01:58.9]} 21.
Nd2 {[%clk 0:01:59.5]} 21... a5 {[%clk 0:01:54.5]} 22. Nc4 {[%clk 0:01:59]}
22... Rb5 {[%clk 0:01:52]} 23. Ne4 {[%clk 0:01:56]} 23... Rb8 {[%clk 0:01:40.4]}
24. Ncd6 {[%clk 0:01:53.6]} 24... Ba6 {[%clk 0:01:31]} 25. Nc5 {[%clk
0:01:53.1]} 25... Ra8 {[%clk 0:01:26.7]} 26. Re4 {[%clk 0:01:51.3]} 26... Qe7
{[%clk 0:01:16.7]} 27. Qd2 {[%clk 0:01:46.8]} 27... Bc8 {[%clk 0:01:10.8]} 28.
Ra4 {[%clk 0:01:39.8]} 28... f6 {[%clk 0:01:06.1]} 29. Rxa5 {[%clk 0:01:37.4]}
29... Rxa5 {[%clk 0:01:04.9]} 30. Qxa5 {[%clk 0:01:37.3]} 30... fxe5 {[%clk
0:01:04.2]} 31. Nde4 {[%clk 0:01:37.2]} 31... Nf4 {[%clk 0:00:51.7]} 32. Rd1
{[%clk 0:01:33.8]} 32... Nd5 {[%clk 0:00:50.1]} 33. Qd2 {[%clk 0:01:30.2]} 33...
Qc7 {[%clk 0:00:48.8]} 34. a4 {[%clk 0:01:28.2]} 34... Qa7 {[%clk 0:00:48.4]}
35. a5 {[%clk 0:01:27.3]} 35... Qc7 {[%clk 0:00:48.2]} 36. Qb2 {[%clk
0:01:20.1]} 36... Rf5 {[%clk 0:00:45.3]} 37. b4 {[%clk 0:01:19.2]} 37... Qb8
{[%clk 0:00:39.6]} 38. Rb1 {[%clk 0:01:09.1]} 38... Nc7 {[%clk 0:00:33.2]} 39.
Ng3 {[%clk 0:01:06.8]} 39... Rf6 {[%clk 0:00:30]} 40. Qxe5 {[%clk 0:01:05.6]}
40... Na6 {[%clk 0:00:29.2]} 41. Qxb8 {[%clk 0:01:00.5]} 41... Nxb8 {[%clk
0:00:30.1]} 42. Nge4 {[%clk 0:00:54.7]} 42... Rf4 {[%clk 0:00:28.3]} 43. f3
{[%clk 0:00:53.1]} 43... Rf8 {[%clk 0:00:21.2]} 44. Nd6 {[%clk 0:00:46.8]} 44...
Kf6 {[%clk 0:00:20.6]} 45. Nxc8 {[%clk 0:00:45.7]} 45... Rxc8 {[%clk 0:00:21.5]}
46. a6 {[%clk 0:00:45.9]} 46... Rc7 {[%clk 0:00:21.3]} 47. Ra1 {[%clk
0:00:39.9]} 47... Ra7 {[%clk 0:00:21.2]} 48. Kf2 {[%clk 0:00:40.2]} 48... Ke5
{[%clk 0:00:20.6]} 49. Ke3 {[%clk 0:00:39.2]} 49... Kd5 {[%clk 0:00:20.1]} 50.
Kd3 {[%clk 0:00:39.3]} 50... Kd6 {[%clk 0:00:16.2]} 51. Kc4 {[%clk 0:00:38.5]}
51... Ke7 {[%clk 0:00:14.4]} 52. b5 {[%clk 0:00:37.9]} 52... cxb5+ {[%clk
0:00:13.8]} 53. Kxb5 {[%clk 0:00:38]} 53... Kd6 {[%clk 0:00:13.5]} 54. Kb6
{[%clk 0:00:38.2]} 54... Nc6 {[%clk 0:00:11.7]} 55. Rd1+ {[%clk 0:00:36]} 1-0

[Event "Late-Titled-Tuesday-Blitz-April-16-2024"]
[Site "Chess.com"]
[Date "2024.04.16"]
[Round "6"]
[White "maximnovik"]
[Black "MyDream003"]
[Result "1-0"]
[WhiteElo "2582"]
[BlackElo "2766"]
[TimeControl "180+1"]
[EndTime "15:03:31 PDT"]
[Termination "maximnovik won on time"]

1. e4 {[%clk 0:03:00.8]} 1... c5 {[%clk 0:02:58.7]} 2. Nf3 {[%clk 0:03:00.2]}
2... d6 {[%clk 0:02:59.2]} 3. c3 {[%clk 0:03:00.3]} 3... Nf6 {[%clk 0:02:59.2]}
4. h3 {[%clk 0:03:00.5]} 4... g6 {[%clk 0:02:57.8]} 5. Bd3 {[%clk 0:03:00.4]}
5... Bg7 {[%clk 0:02:58]} 6. O-O {[%clk 0:03:00.5]} 6... O-O {[%clk 0:02:58]} 7.
Bc2 {[%clk 0:02:59.8]} 7... Nc6 {[%clk 0:02:56.9]} 8. d4 {[%clk 0:02:59.8]} 8...
cxd4 {[%clk 0:02:57.8]} 9. cxd4 {[%clk 0:02:59.9]} 9... Nb4 {[%clk 0:02:58.2]}
10. Nc3 {[%clk 0:02:57.8]} 10... Nxc2 {[%clk 0:02:58]} 11. Qxc2 {[%clk
0:02:57.8]} 11... b6 {[%clk 0:02:47.8]} 12. Bg5 {[%clk 0:02:46.8]} 12... Bb7
{[%clk 0:02:44.4]} 13. Rfe1 {[%clk 0:02:46.3]} 13... Rc8 {[%clk 0:02:42]} 14.
Qd2 {[%clk 0:02:38.9]} 14... Re8 {[%clk 0:02:39.1]} 15. Rad1 {[%clk 0:02:23.9]}
15... a6 {[%clk 0:02:23.7]} 16. a4 {[%clk 0:02:19.4]} 16... Nd7 {[%clk
0:02:15.9]} 17. Qf4 {[%clk 0:02:03.4]} 17... Nf8 {[%clk 0:01:47.3]} 18. Qh4
{[%clk 0:01:52.6]} 18... Qd7 {[%clk 0:01:33.9]} 19. Bh6 {[%clk 0:01:26.8]} 19...
f6 {[%clk 0:01:19.1]} 20. Bxg7 {[%clk 0:01:24.7]} 20... Kxg7 {[%clk 0:01:20]}
21. d5 {[%clk 0:01:20.8]} 21... Rc4 {[%clk 0:01:19.8]} 22. Nd4 {[%clk
0:01:20.5]} 22... e5 {[%clk 0:01:15.6]} 23. dxe6 {[%clk 0:01:19.5]} 23... Nxe6
{[%clk 0:01:16.1]} 24. e5 {[%clk 0:01:10.6]} 24... fxe5 {[%clk 0:00:47]} 25.
Nf5+ {[%clk 0:01:01.7]} 25... gxf5 {[%clk 0:00:47.9]} 26. Qxc4 {[%clk
0:01:01.6]} 26... Nf4 {[%clk 0:00:44.2]} 27. f3 {[%clk 0:00:53]} 27... Qd8
{[%clk 0:00:28.3]} 28. Kh2 {[%clk 0:00:43.5]} 28... Qg5 {[%clk 0:00:11.5]} 29.
Qf1 {[%clk 0:00:29.3]} 29... Re6 {[%clk 0:00:09.4]} 30. Qf2 {[%clk 0:00:25.1]}
30... Rg6 {[%clk 0:00:08.6]} 31. g3 {[%clk 0:00:24.9]} 31... Nh5 {[%clk
0:00:04.4]} 32. Rg1 {[%clk 0:00:21.6]} 32... b5 {[%clk 0:00:01.7]} 33. Nd5
{[%clk 0:00:19.9]} 33... Kh6 {[%clk 0:00:01.8]} 34. f4 {[%clk 0:00:19.7]} 34...
Qd8 {[%clk 0:00:01.4]} 35. fxe5 {[%clk 0:00:19.1]} 35... dxe5 {[%clk 0:00:01.5]}
36. Qe3+ {[%clk 0:00:18.2]} 36... f4 {[%clk 0:00:01.7]} 37. gxf4 {[%clk
0:00:17.1]} 37... Rxg1 {[%clk 0:00:02.6]} 38. Rxg1 {[%clk 0:00:14.6]} 38... e4
{[%clk 0:00:02.5]} 39. f5+ {[%clk 0:00:14.5]} 1-0

[Event "Late-Titled-Tuesday-Blitz-April-16-2024"]
[Site "Chess.com"]
[Date "2024.04.16"]
[Round "6"]
[White "Chempiblinka"]
[Black "carloseduar100"]
[Result "1-0"]
[WhiteElo "2358"]
[BlackElo "2234"]
[TimeControl "180+1"]
[EndTime "15:03:35 PDT"]
[Termination "Chempiblinka won by resignation"]

1. d4 {[%clk 0:03:00.5]} 1... d5 {[%clk 0:02:59]} 2. c4 {[%clk 0:03:00.5]} 2...
e6 {[%clk 0:02:54.9]} 3. Nf3 {[%clk 0:03:00]} 3... a6 {[%clk 0:02:51.4]} 4. cxd5
{[%clk 0:02:59.4]} 4... exd5 {[%clk 0:02:51.3]} 5. Nc3 {[%clk 0:02:59.4]} 5...
Bg4 {[%clk 0:02:37.6]} 6. Qb3 {[%clk 0:02:56.2]} 6... Bxf3 {[%clk 0:02:32.7]} 7.
exf3 {[%clk 0:02:53.3]} 7... Nc6 {[%clk 0:02:27.3]} 8. Be3 {[%clk 0:02:49.9]}
8... Nge7 {[%clk 0:02:17]} 9. Bd3 {[%clk 0:02:28.8]} 9... g6 {[%clk 0:02:13.3]}
10. O-O {[%clk 0:02:20.4]} 10... Bg7 {[%clk 0:02:13.2]} 11. Rad1 {[%clk
0:02:09.4]} 11... O-O {[%clk 0:02:10.9]} 12. Bb1 {[%clk 0:02:00]} 12... b5
{[%clk 0:02:08.7]} 13. a4 {[%clk 0:01:57.8]} 13... b4 {[%clk 0:02:01.2]} 14. Ne2
{[%clk 0:01:57.6]} 14... a5 {[%clk 0:02:01.2]} 15. Bd3 {[%clk 0:01:51.1]} 15...
Re8 {[%clk 0:01:59.9]} 16. Rc1 {[%clk 0:01:51.4]} 16... Qd6 {[%clk 0:01:51.2]}
17. Rfd1 {[%clk 0:01:47]} 17... Nd8 {[%clk 0:01:39.6]} 18. Bf4 {[%clk
0:01:45.8]} 18... Qf6 {[%clk 0:01:24.6]} 19. Bxc7 {[%clk 0:01:42.1]} 19... Ne6
{[%clk 0:01:24.5]} 20. Be5 {[%clk 0:01:39.8]} 20... Qh4 {[%clk 0:01:24.4]} 21.
Bg3 {[%clk 0:01:32.3]} 21... Nxd4 {[%clk 0:01:20.9]} 22. Nxd4 {[%clk 0:01:24.8]}
22... Qxd4 {[%clk 0:01:21.4]} 23. Bb5 {[%clk 0:01:25.2]} 23... Qxb2 {[%clk
0:01:18.3]} 24. Qxb2 {[%clk 0:01:25.8]} 24... Bxb2 {[%clk 0:01:18.8]} 25. Rc2
{[%clk 0:01:26.1]} 25... Bf6 {[%clk 0:01:11.1]} 26. Bxe8 {[%clk 0:01:25.8]}
26... Rxe8 {[%clk 0:01:11.6]} 27. Re2 {[%clk 0:01:23.2]} 27... Rc8 {[%clk
0:01:04.9]} 28. h4 {[%clk 0:01:18.2]} 28... d4 {[%clk 0:01:04.7]} 29. Be5 {[%clk
0:01:13.8]} 29... Bxe5 {[%clk 0:01:02.7]} 30. Rxe5 {[%clk 0:01:13.8]} 30... Nf5
{[%clk 0:01:02.8]} 31. Rxa5 {[%clk 0:01:08.5]} 31... Rb8 {[%clk 0:01:01]} 32.
Rb5 {[%clk 0:01:08.2]} 32... Rd8 {[%clk 0:00:46.8]} 33. Rxb4 {[%clk 0:01:08.4]}
33... Kg7 {[%clk 0:00:43.9]} 34. a5 {[%clk 0:01:08.4]} 34... Kf6 {[%clk
0:00:40.1]} 35. a6 {[%clk 0:01:08.5]} 35... Ke5 {[%clk 0:00:40.4]} 36. a7 {[%clk
0:01:08.5]} 36... Ra8 {[%clk 0:00:40.9]} 37. Ra4 {[%clk 0:01:08.9]} 37... Kd6
{[%clk 0:00:29.2]} 38. g3 {[%clk 0:01:07.2]} 38... Kc7 {[%clk 0:00:28.4]} 39.
Rb1 {[%clk 0:01:05.6]} 39... h5 {[%clk 0:00:21.9]} 40. Kf1 {[%clk 0:01:02.5]}
40... Nd6 {[%clk 0:00:16.3]} 41. Rc1+ {[%clk 0:00:59.5]} 41... Kd7 {[%clk
0:00:15.3]} 42. Rd1 {[%clk 0:00:54.2]} 42... Nb5 {[%clk 0:00:14.5]} 43. Ra5
{[%clk 0:00:52.8]} 43... Kc6 {[%clk 0:00:13.6]} 44. Rb1 {[%clk 0:00:49.3]} 44...
Nxa7 {[%clk 0:00:12.1]} 45. Ra6+ {[%clk 0:00:46.1]} 45... Kc7 {[%clk 0:00:11.8]}
46. Ra4 {[%clk 0:00:46.2]} 46... Nc6 {[%clk 0:00:10.5]} 47. Rxa8 {[%clk
0:00:45.5]} 1-0

[Event "Late-Titled-Tuesday-Blitz-April-16-2024"]
[Site "Chess.com"]
[Date "2024.04.16"]
[Round "6"]
[White "Slovineanu"]
[Black "hristos03"]
[Result "0-1"]
[WhiteElo "2482"]
[BlackElo "2372"]
[TimeControl "180+1"]
[EndTime "15:03:36 PDT"]
[Termination "hristos03 won by resignation"]

1. d4 {[%clk 0:02:57.8]} 1... Nf6 {[%clk 0:02:59.5]} 2. Nf3 {[%clk 0:02:56.8]}
2... c5 {[%clk 0:02:58.5]} 3. d5 {[%clk 0:02:56.2]} 3... e6 {[%clk 0:02:58.3]}
4. Nc3 {[%clk 0:02:55.9]} 4... d6 {[%clk 0:02:54.6]} 5. e4 {[%clk 0:02:49.4]}
5... exd5 {[%clk 0:02:50.5]} 6. exd5 {[%clk 0:02:49.3]} 6... g6 {[%clk
0:02:50.9]} 7. Bb5+ {[%clk 0:02:48.5]} 7... Bd7 {[%clk 0:02:49.8]} 8. a4 {[%clk
0:02:48.4]} 8... a6 {[%clk 0:02:45.7]} 9. Bc4 {[%clk 0:02:45.8]} 9... Bg7 {[%clk
0:02:45.3]} 10. O-O {[%clk 0:02:44.9]} 10... O-O {[%clk 0:02:45.9]} 11. h3
{[%clk 0:02:44.9]} 11... Bf5 {[%clk 0:02:37.2]} 12. Bf4 {[%clk 0:02:44.1]} 12...
Ne4 {[%clk 0:02:30.3]} 13. Nxe4 {[%clk 0:02:34.7]} 13... Bxe4 {[%clk 0:02:31.2]}
14. c3 {[%clk 0:02:35]} 14... Qf6 {[%clk 0:02:01.5]} 15. Bg3 {[%clk 0:01:22.4]}
15... h6 {[%clk 0:01:32.9]} 16. Re1 {[%clk 0:01:19.3]} 16... Bf5 {[%clk
0:01:31.9]} 17. Bd3 {[%clk 0:01:00.6]} 17... Bxd3 {[%clk 0:01:28.8]} 18. Qxd3
{[%clk 0:01:00.1]} 18... Nd7 {[%clk 0:01:26.7]} 19. Nd2 {[%clk 0:00:59.4]} 19...
Rfe8 {[%clk 0:01:09.4]} 20. Ne4 {[%clk 0:00:40.9]} 20... Qf5 {[%clk 0:00:55.4]}
21. Bxd6 {[%clk 0:00:38.8]} 21... c4 {[%clk 0:00:31.3]} 22. Qxc4 {[%clk
0:00:38.5]} 22... Nb6 {[%clk 0:00:31.6]} 23. Qd3 {[%clk 0:00:30.2]} 23... Nxd5
{[%clk 0:00:29.7]} 24. Rad1 {[%clk 0:00:24.5]} 24... Nb6 {[%clk 0:00:18.7]} 25.
a5 {[%clk 0:00:20.4]} 25... Nc8 {[%clk 0:00:12.5]} 26. Bg3 {[%clk 0:00:18]}
26... Qxa5 {[%clk 0:00:07.4]} 27. b4 {[%clk 0:00:17.4]} 27... Qf5 {[%clk
0:00:05.2]} 28. Nf6+ {[%clk 0:00:16]} 28... Qxf6 {[%clk 0:00:03]} 29. Rxe8+
{[%clk 0:00:16.2]} 29... Kh7 {[%clk 0:00:03.7]} 30. Qd8 {[%clk 0:00:12.2]} 30...
Qxc3 {[%clk 0:00:01.7]} 31. Qd7 {[%clk 0:00:08.2]} 31... Nb6 {[%clk 0:00:01.3]}
32. Qxf7 {[%clk 0:00:07.8]} 32... Rxe8 {[%clk 0:00:01.7]} 33. Qf8 {[%clk
0:00:08.3]} 33... Rxf8 {[%clk 0:00:01.4]} 34. Rd6 {[%clk 0:00:06.2]} 34... Qxb4
{[%clk 0:00:01.6]} 35. Re6 {[%clk 0:00:05.6]} 35... Qb1+ {[%clk 0:00:01.8]} 36.
Kh2 {[%clk 0:00:05.5]} 36... Qb5 {[%clk 0:00:02.7]} 37. Bd6 {[%clk 0:00:05.1]}
37... Qd7 {[%clk 0:00:02.6]} 0-1

[Event "Late-Titled-Tuesday-Blitz-April-16-2024"]
[Site "Chess.com"]
[Date "2024.04.16"]
[Round "6"]
[White "ural58"]
[Black "egnfanclub"]
[Result "1-0"]
[WhiteElo "2515"]
[BlackElo "2380"]
[TimeControl "180+1"]
[EndTime "15:03:41 PDT"]
[Termination "ural58 won by resignation"]

1. e4 {[%clk 0:03:00.9]} 1... e5 {[%clk 0:02:59.5]} 2. Nf3 {[%clk 0:03:00.1]}
2... Nc6 {[%clk 0:02:59.7]} 3. Bc4 {[%clk 0:03:00]} 3... Nf6 {[%clk 0:02:59.5]}
4. Ng5 {[%clk 0:03:00]} 4... d5 {[%clk 0:02:59.2]} 5. exd5 {[%clk 0:03:00.2]}
5... Nd4 {[%clk 0:03:00.1]} 6. c3 {[%clk 0:02:59.6]} 6... b5 {[%clk 0:03:00.2]}
7. Bf1 {[%clk 0:02:59.4]} 7... Nxd5 {[%clk 0:03:00]} 8. cxd4 {[%clk 0:02:56.8]}
8... Qxg5 {[%clk 0:02:59.1]} 9. Bxb5+ {[%clk 0:02:56.2]} 9... Kd8 {[%clk
0:02:59.4]} 10. O-O {[%clk 0:02:55]} 10... Bb7 {[%clk 0:02:56.8]} 11. Qf3 {[%clk
0:02:42.8]} 11... Rb8 {[%clk 0:02:56]} 12. Nc3 {[%clk 0:02:35.9]} 12... Nf4
{[%clk 0:02:30.1]} 13. Qg3 {[%clk 0:02:35.2]} 13... Qxg3 {[%clk 0:02:18.6]} 14.
hxg3 {[%clk 0:02:34.1]} 14... exd4 {[%clk 0:02:19]} 15. gxf4 {[%clk 0:02:27.8]}
15... dxc3 {[%clk 0:02:19.2]} 16. dxc3 {[%clk 0:02:15.6]} 16... Bxg2 {[%clk
0:02:09.7]} 17. Rd1+ {[%clk 0:02:15.1]} 17... Bd6 {[%clk 0:02:09.4]} 18. Bc4
{[%clk 0:02:14.4]} 18... Bf3 {[%clk 0:02:05.2]} 19. Rd3 {[%clk 0:02:14]} 19...
Be4 {[%clk 0:01:56]} 20. Rd4 {[%clk 0:02:11.8]} 20... Bg6 {[%clk 0:01:51.4]} 21.
b3 {[%clk 0:01:49]} 21... h5 {[%clk 0:01:48]} 22. Ba3 {[%clk 0:01:48.3]} 22...
Kd7 {[%clk 0:01:35.7]} 23. Rad1 {[%clk 0:01:47.5]} 23... Rb6 {[%clk 0:01:35.9]}
24. Bc5 {[%clk 0:01:45]} 24... h4 {[%clk 0:01:27.8]} 25. Bxb6 {[%clk 0:01:44.7]}
25... axb6 {[%clk 0:01:28.7]} 26. Bd3 {[%clk 0:01:39.1]} 26... Bh5 {[%clk
0:01:24.9]} 27. Bf5+ {[%clk 0:01:35.9]} 27... Ke7 {[%clk 0:01:20.9]} 28. R1d3
{[%clk 0:01:27.4]} 28... Kf6 {[%clk 0:01:17.9]} 29. Be4 {[%clk 0:01:21.7]} 29...
Bxf4 {[%clk 0:01:11.2]} 30. Bf3 {[%clk 0:01:18.2]} 30... Bxf3 {[%clk 0:01:00.2]}
31. Rxf3 {[%clk 0:01:18]} 31... g5 {[%clk 0:01:00.6]} 32. a4 {[%clk 0:01:06.8]}
32... Kf5 {[%clk 0:01:00.6]} 33. Rc4 {[%clk 0:01:02.5]} 33... c5 {[%clk
0:00:58]} 34. a5 {[%clk 0:01:01.8]} 34... Kg4 {[%clk 0:00:51.1]} 35. Rfxf4+
{[%clk 0:00:59.7]} 35... gxf4 {[%clk 0:00:50.5]} 36. axb6 {[%clk 0:00:59.4]}
36... Kf3 {[%clk 0:00:44.8]} 37. Rxc5 {[%clk 0:00:36.4]} 37... Rg8+ {[%clk
0:00:44.5]} 38. Kh1 {[%clk 0:00:34.2]} 38... Kxf2 {[%clk 0:00:39.8]} 39. b7
{[%clk 0:00:33.3]} 39... Rb8 {[%clk 0:00:30.2]} 40. Rc7 {[%clk 0:00:32.4]} 40...
f5 {[%clk 0:00:30.5]} 41. c4 {[%clk 0:00:32.4]} 41... f3 {[%clk 0:00:30.3]} 42.
c5 {[%clk 0:00:32.3]} 42... Kg3 {[%clk 0:00:26.9]} 43. Rg7+ {[%clk 0:00:32]}
43... Kf4 {[%clk 0:00:23.7]} 44. c6 {[%clk 0:00:32.1]} 44... Ke3 {[%clk
0:00:20.5]} 45. Re7+ {[%clk 0:00:31.2]} 45... Kf2 {[%clk 0:00:18]} 46. Re5
{[%clk 0:00:26.1]} 46... Rg8 {[%clk 0:00:17.1]} 47. c7 {[%clk 0:00:20.5]} 47...
Rg1+ {[%clk 0:00:15.2]} 48. Kh2 {[%clk 0:00:20.8]} 48... Rg2+ {[%clk 0:00:15.7]}
49. Kh3 {[%clk 0:00:20.9]} 49... Rg1 {[%clk 0:00:16.1]} 50. Kxh4 {[%clk
0:00:20.8]} 50... Rh1+ {[%clk 0:00:16.3]} 51. Kg5 {[%clk 0:00:20.8]} 51... Kg3
{[%clk 0:00:15.1]} 52. b8=Q {[%clk 0:00:19.3]} 1-0

[Event "Late-Titled-Tuesday-Blitz-April-16-2024"]
[Site "Chess.com"]
[Date "2024.04.16"]
[Round "6"]
[White "schachsensei_YT"]
[Black "martinmena"]
[Result "0-1"]
[WhiteElo "2305"]
[BlackElo "2189"]
[TimeControl "180+1"]
[EndTime "15:03:41 PDT"]
[Termination "martinmena won on time"]

1. Nf3 {[%clk 0:02:56.9]} 1... d5 {[%clk 0:02:58.8]} 2. g3 {[%clk 0:02:56.7]}
2... Nf6 {[%clk 0:02:57.9]} 3. Bg2 {[%clk 0:02:57.2]} 3... e6 {[%clk 0:02:57.3]}
4. O-O {[%clk 0:02:57]} 4... Be7 {[%clk 0:02:55.8]} 5. d3 {[%clk 0:02:57.6]}
5... O-O {[%clk 0:02:55]} 6. Nbd2 {[%clk 0:02:58.5]} 6... c5 {[%clk 0:02:54.9]}
7. e4 {[%clk 0:02:59.1]} 7... Nc6 {[%clk 0:02:53.1]} 8. e5 {[%clk 0:02:59.5]}
8... Nd7 {[%clk 0:02:50.1]} 9. Re1 {[%clk 0:03:00.1]} 9... Qc7 {[%clk
0:02:47.1]} 10. Qe2 {[%clk 0:02:59.7]} 10... b5 {[%clk 0:02:32.8]} 11. h4 {[%clk
0:02:58]} 11... a5 {[%clk 0:02:29.6]} 12. Nf1 {[%clk 0:02:56.5]} 12... Nd4
{[%clk 0:02:22.1]} 13. Nxd4 {[%clk 0:02:55.3]} 13... cxd4 {[%clk 0:02:23]} 14.
Bf4 {[%clk 0:02:54.4]} 14... a4 {[%clk 0:02:01.3]} 15. a3 {[%clk 0:02:49.7]}
15... b4 {[%clk 0:02:00.3]} 16. axb4 {[%clk 0:02:47.7]} 16... Bxb4 {[%clk
0:02:01.2]} 17. Rec1 {[%clk 0:02:47]} 17... a3 {[%clk 0:02:00.1]} 18. bxa3
{[%clk 0:02:40.5]} 18... Bc3 {[%clk 0:01:44.8]} 19. Ra2 {[%clk 0:02:26.5]} 19...
Qc5 {[%clk 0:01:44]} 20. h5 {[%clk 0:02:14.4]} 20... Rxa3 {[%clk 0:01:35.9]} 21.
Rxa3 {[%clk 0:02:10.4]} 21... Qxa3 {[%clk 0:01:36.8]} 22. h6 {[%clk 0:02:10.5]}
22... g6 {[%clk 0:01:36.2]} 23. Nh2 {[%clk 0:02:06.6]} 23... Nc5 {[%clk
0:01:24]} 24. Ng4 {[%clk 0:02:01.9]} 24... Qb2 {[%clk 0:01:12.9]} 25. Nf6+
{[%clk 0:01:54.8]} 25... Kh8 {[%clk 0:01:12.1]} 26. Qf3 {[%clk 0:01:38.4]} 26...
Ba5 {[%clk 0:00:54.5]} 27. Bg5 {[%clk 0:01:27.3]} 27... Bd8 {[%clk 0:00:18.6]}
28. Qd1 {[%clk 0:00:49.7]} 28... Bxf6 {[%clk 0:00:05.4]} 29. Bxf6+ {[%clk
0:00:46.9]} 29... Kg8 {[%clk 0:00:06.1]} 30. Be7 {[%clk 0:00:38.1]} 30... Nd7
{[%clk 0:00:01.5]} 31. Rb1 {[%clk 0:00:33.8]} 31... Qc3 {[%clk 0:00:01.2]} 32.
Bxf8 {[%clk 0:00:21.3]} 32... Nxf8 {[%clk 0:00:02.1]} 33. Rb3 {[%clk 0:00:13]}
33... Qc7 {[%clk 0:00:02]} 34. Rb4 {[%clk 0:00:10.3]} 34... Qxe5 {[%clk
0:00:01.8]} 35. Qd2 {[%clk 0:00:06.4]} 35... Qd6 {[%clk 0:00:02.4]} 36. Ra4
{[%clk 0:00:03.6]} 36... e5 {[%clk 0:00:03]} 37. Ra8 {[%clk 0:00:03.4]} 37...
Bd7 {[%clk 0:00:03.4]} 38. Qa5 {[%clk 0:00:02.4]} 38... Qe7 {[%clk 0:00:03.5]}
39. Qc7 {[%clk 0:00:01.9]} 39... Qe6 {[%clk 0:00:02.5]} 40. Qd8 {[%clk
0:00:01.4]} 40... Qd6 {[%clk 0:00:03]} 0-1

[Event "Late-Titled-Tuesday-Blitz-April-16-2024"]
[Site "Chess.com"]
[Date "2024.04.16"]
[Round "6"]
[White "Alexei_Gubajdullin"]
[Black "Polish_fighter3000"]
[Result "0-1"]
[WhiteElo "2612"]
[BlackElo "3105"]
[TimeControl "180+1"]
[EndTime "15:03:42 PDT"]
[Termination "Polish_fighter3000 won on time"]

1. Nf3 {[%clk 0:03:00.9]} 1... b5 {[%clk 0:02:49.6]} 2. g4 {[%clk 0:03:00.7]}
2... Bb7 {[%clk 0:02:48.2]} 3. g5 {[%clk 0:02:59.6]} 3... e5 {[%clk 0:02:44.9]}
4. d3 {[%clk 0:02:56.9]} 4... h6 {[%clk 0:02:41.4]} 5. Rg1 {[%clk 0:02:54.8]}
5... hxg5 {[%clk 0:02:40.1]} 6. Bxg5 {[%clk 0:02:54.7]} 6... f6 {[%clk
0:02:38.9]} 7. Bd2 {[%clk 0:02:34.5]} 7... d5 {[%clk 0:02:38.7]} 8. Nc3 {[%clk
0:02:33.6]} 8... Qd7 {[%clk 0:02:36.4]} 9. e4 {[%clk 0:02:31.8]} 9... d4 {[%clk
0:02:36.1]} 10. Ne2 {[%clk 0:02:29.1]} 10... g5 {[%clk 0:02:31.8]} 11. h3 {[%clk
0:02:17.6]} 11... Ne7 {[%clk 0:02:22.4]} 12. a4 {[%clk 0:02:15.7]} 12... a6
{[%clk 0:02:19.1]} 13. c3 {[%clk 0:02:07.7]} 13... c5 {[%clk 0:02:17.4]} 14.
cxd4 {[%clk 0:02:05.2]} 14... exd4 {[%clk 0:02:13.4]} 15. b4 {[%clk 0:02:04.3]}
15... c4 {[%clk 0:01:52.5]} 16. Nexd4 {[%clk 0:02:02.4]} 16... Nbc6 {[%clk
0:01:52.2]} 17. Bc3 {[%clk 0:01:58.8]} 17... Nxd4 {[%clk 0:01:35]} 18. Nxd4
{[%clk 0:01:58.3]} 18... cxd3 {[%clk 0:01:26]} 19. axb5 {[%clk 0:01:55.8]} 19...
Rc8 {[%clk 0:01:23.3]} 20. Qxd3 {[%clk 0:01:52.3]} 20... axb5 {[%clk 0:01:17.1]}
21. Nxb5 {[%clk 0:01:51.7]} 21... Qxd3 {[%clk 0:00:44.6]} 22. Bxd3 {[%clk
0:01:51.3]} 22... Ng6 {[%clk 0:00:45.1]} 23. Ra7 {[%clk 0:01:24.9]} 23... Rxh3
{[%clk 0:00:36.8]} 24. Bf1 {[%clk 0:01:16.6]} 24... Rh7 {[%clk 0:00:26.3]} 25.
Kd2 {[%clk 0:00:43]} 25... Rd7+ {[%clk 0:00:14.9]} 26. Kc1 {[%clk 0:00:40.1]}
26... Bxb4 {[%clk 0:00:12.7]} 27. Kb2 {[%clk 0:00:30.7]} 27... Bxc3+ {[%clk
0:00:08.4]} 28. Nxc3 {[%clk 0:00:31.6]} 28... Rd2+ {[%clk 0:00:03.3]} 29. Kb3
{[%clk 0:00:31.8]} 29... Rb8 {[%clk 0:00:03.1]} 30. Bb5+ {[%clk 0:00:28.8]}
30... Bc6 {[%clk 0:00:03]} 31. Kc4 {[%clk 0:00:21.6]} 31... Bxb5+ {[%clk
0:00:02.4]} 32. Nxb5 {[%clk 0:00:21.9]} 32... Ne5+ {[%clk 0:00:03]} 33. Kc5
{[%clk 0:00:05.6]} 33... Rc2+ {[%clk 0:00:03.3]} 34. Kd5 {[%clk 0:00:05.8]}
34... Rxb5+ {[%clk 0:00:02.8]} 35. Ke6 {[%clk 0:00:04.6]} 35... Rc6+ {[%clk
0:00:03.3]} 36. Kf5 {[%clk 0:00:02.7]} 36... Nf3+ {[%clk 0:00:03.7]} 37. Kg6
{[%clk 0:00:02.2]} 37... Nxg1 {[%clk 0:00:04.6]} 38. Ra8+ {[%clk 0:00:02.4]}
38... Kd7 {[%clk 0:00:05.2]} 39. Ra7+ {[%clk 0:00:03.3]} 39... Ke6 {[%clk
0:00:05.7]} 40. f4 {[%clk 0:00:01.6]} 40... gxf4 {[%clk 0:00:05.4]} 41. e5
{[%clk 0:00:02.1]} 41... Rxe5 {[%clk 0:00:05.5]} 42. Kh6 {[%clk 0:00:02]} 42...
Rg5 {[%clk 0:00:05.5]} 0-1